[Event "TOP 12F 2021"]
[Site "RENNES, France"]
[Date "2021.08.28"]
[Round "4.14"]
[White "Seite, Yamina"]
[Black "Doluhanova, Evgeniya"]
[Result "0-1"]
[TimeControl "1H30 + 30 sec/coup"]
[WhiteElo "1870"]
[BlackElo "2207"]

1. e4 {[%clk 01:30:58]} {[%emt 00:00:02]} e5 {[%clk 01:24:52]} {[%emt
00:06:06]} 2. Nf3 {[%clk 01:31:18]} {[%emt 00:00:11]} Nc6 {[%clk 01:25:12]}
{[%emt 00:00:10]} 3. Bb5 {[%clk 01:31:38]} {[%emt 00:00:10]} Nf6 {[%clk
01:25:15]} {[%emt 00:00:27]} 4. O-O {[%clk 01:31:54]} {[%emt 00:00:15]} d6
{[%clk 01:24:40]} {[%emt 00:01:05]} 5. d4 {[%clk 01:28:08]} {[%emt 00:04:16]}
Bd7 {[%clk 01:22:18]} {[%emt 00:02:52]} 6. Re1 {[%clk 01:21:02]} {[%emt
00:07:35]} Nxd4 {[%clk 01:15:56]} {[%emt 00:06:52]} 7. Bxd7+ {[%clk 01:20:37]}
{[%emt 00:00:56]} Qxd7 {[%clk 01:16:20]} {[%emt 00:00:05]} 8. Nxd4 {[%clk
01:20:42]} {[%emt 00:00:25]} exd4 {[%clk 01:16:46]} {[%emt 00:00:04]} 9. Qxd4
{[%clk 01:21:02]} {[%emt 00:00:10]} Be7 {[%clk 01:17:12]} {[%emt 00:00:03]} 10.
Nc3 {[%clk 01:10:37]} {[%emt 00:10:55]} O-O {[%clk 01:16:52]} {[%emt 00:00:49]}
11. Bg5 {[%clk 01:05:04]} {[%emt 00:06:04]} Qg4 {[%clk 01:12:11]} {[%emt
00:05:10]} 12. Qd2 {[%clk 01:01:41]} {[%emt 00:03:53]} h6 {[%clk 01:08:34]}
{[%emt 00:04:07]} 13. Bf4 {[%clk 00:55:29]} {[%emt 00:06:42]} Nh5 {[%clk
01:03:50]} {[%emt 00:05:14]} 14. Nd5 {[%clk 00:52:22]} {[%emt 00:03:39]} Bd8
{[%clk 00:56:39]} {[%emt 00:07:40]} 15. h3 {[%clk 00:44:30]} {[%emt 00:08:21]}
Qg6 {[%clk 00:50:12]} {[%emt 00:06:56]} 16. Bh2 {[%clk 00:41:41]} {[%emt
00:03:20]} c6 {[%clk 00:43:03]} {[%emt 00:07:40]} 17. Ne3 {[%clk 00:37:20]}
{[%emt 00:04:50]} Re8 {[%clk 00:35:02]} {[%emt 00:08:31]} 18. Nf5 {[%clk
00:25:13]} {[%emt 00:12:38]} d5 {[%clk 00:26:11]} {[%emt 00:09:20]} 19. Nd6
{[%clk 00:21:48]} {[%emt 00:03:55]} Bg5 {[%clk 00:25:48]} {[%emt 00:00:53]} 20.
Qe2 {[%clk 00:17:31]} {[%emt 00:04:47]} Re6 {[%clk 00:16:30]} {[%emt 00:09:48]}
21. e5 {[%clk 00:15:26]} {[%emt 00:02:35]} f6 {[%clk 00:02:26]} {[%emt
00:14:33]} 22. Qg4 {[%clk 00:13:54]} {[%emt 00:02:01]} fxe5 {[%clk 00:02:27]}
{[%emt 00:00:29]} 23. Bxe5 {[%clk 00:12:37]} {[%emt 00:01:47]} Bd2 {[%clk
00:02:01]} {[%emt 00:00:56]} 24. Qxg6 {[%clk 00:08:14]} {[%emt 00:04:53]} Rxg6
{[%clk 00:02:26]} {[%emt 00:00:05]} 25. Re2 {[%clk 00:06:10]} {[%emt 00:02:34]}
Bf4 {[%clk 00:02:32]} {[%emt 00:00:24]} 26. Nxb7 {[%clk 00:02:39]} {[%emt
00:04:02]} Bxe5 {[%clk 00:01:04]} {[%emt 00:01:58]} 27. Rxe5 {[%clk 00:03:05]}
{[%emt 00:00:04]} Nf4 {[%clk 00:01:29]} {[%emt 00:00:05]} 28. g3 {[%clk
00:00:39]} {[%emt 00:02:56]} Nxh3+ {[%clk 00:01:39]} {[%emt 00:00:20]} 29. Kh2
{[%clk 00:00:40]} {[%emt 00:00:29]} Nxf2 {[%clk 00:01:45]} {[%emt 00:00:23]} 30.
Re7 {[%clk 00:00:44]} {[%emt 00:00:27]} Ne4 {[%clk 00:01:15]} {[%emt 00:01:00]}
31. Na5 {[%clk 00:00:45]} {[%emt 00:00:29]} Rf8 {[%clk 00:01:21]} {[%emt
00:00:23]} 32. Rg1 {[%clk 00:00:40]} {[%emt 00:00:34]} Nd2 {[%clk 00:01:20]}
{[%emt 00:00:31]} 33. Rg2 {[%clk 00:00:41]} {[%emt 00:00:29]} Nf1+ {[%clk
00:01:06]} {[%emt 00:00:44]} 34. Kh3 {[%clk 00:00:38]} {[%emt 00:00:33]} Rf5
{[%clk 00:01:06]} {[%emt 00:00:30]} 35. g4 {[%clk 00:00:46]} {[%emt 00:00:22]}
Rf3+ {[%clk 00:01:21]} {[%emt 00:00:16]} 36. Kh4 {[%clk 00:01:12]} {[%emt
00:00:04]} Ne3 {[%clk 00:01:34]} {[%emt 00:00:15]} 37. Rg1 {[%clk 00:00:34]}
{[%emt 00:01:09]} Rxg4+ {[%clk 00:01:10]} {[%emt 00:00:54]} 38. Rxg4 {[%clk
00:00:56]} {[%emt 00:00:09]} Nf5+ {[%clk 00:01:37]} {[%emt 00:00:03]} 39. Kh5
{[%clk 00:01:15]} {[%emt 00:00:11]} Rh3+ {[%clk 00:01:51]} {[%emt 00:00:15]} 40.
Kg6 {[%clk 00:01:39]} {[%emt 00:00:06]} Nxe7# {[%clk 00:02:17]} {[%emt
00:00:04]} 0-1

[Event "TOP 12F 2021"]
[Site "RENNES, France"]
[Date "2021.08.28"]
[Round "4.15"]
[White "Le Marec, Laura"]
[Black "Steil-Antoni, Fiona"]
[Result "0-1"]
[TimeControl "1H30 + 30 sec/coup"]
[WhiteElo "2118"]
[BlackElo "2153"]

1. c4 {[%clk 01:30:56]} {[%emt 00:00:03]} e5 {[%clk 01:30:55]} {[%emt
00:00:05]} 2. Nc3 {[%clk 01:30:28]} {[%emt 00:00:57]} Nc6 {[%clk 01:31:07]}
{[%emt 00:00:19]} 3. g3 {[%clk 01:28:14]} {[%emt 00:02:45]} f5 {[%clk
01:31:27]} {[%emt 00:00:10]} 4. Bg2 {[%clk 01:27:54]} {[%emt 00:00:50]} Nf6
{[%clk 01:31:47]} {[%emt 00:00:09]} 5. e3 {[%clk 01:27:13]} {[%emt 00:01:11]}
g6 {[%clk 01:31:24]} {[%emt 00:00:53]} 6. Nge2 {[%clk 01:25:33]} {[%emt
00:02:10]} Bg7 {[%clk 01:31:15]} {[%emt 00:00:39]} 7. O-O {[%clk 01:24:54]}
{[%emt 00:01:09]} O-O {[%clk 01:31:14]} {[%emt 00:00:31]} 8. b3 {[%clk
01:21:43]} {[%emt 00:03:42]} d6 {[%clk 01:28:41]} {[%emt 00:03:02]} 9. Bb2
{[%clk 01:11:48]} {[%emt 00:10:25]} Ne7 {[%clk 01:25:19]} {[%emt 00:03:52]} 10.
d4 {[%clk 01:09:06]} {[%emt 00:03:12]} e4 {[%clk 01:24:34]} {[%emt 00:01:15]}
11. f3 {[%clk 01:08:23]} {[%emt 00:01:14]} exf3 {[%clk 01:21:37]} {[%emt
00:03:27]} 12. Bxf3 {[%clk 01:07:19]} {[%emt 00:01:33]} c6 {[%clk 01:21:01]}
{[%emt 00:01:06]} 13. Qd3 {[%clk 00:57:36]} {[%emt 00:10:14]} d5 {[%clk
01:18:29]} {[%emt 00:03:01]} 14. Ba3 {[%clk 00:52:30]} {[%emt 00:05:35]} dxc4
{[%clk 01:11:29]} {[%emt 00:07:30]} 15. bxc4 {[%clk 00:51:00]} {[%emt
00:02:01]} Re8 {[%clk 01:09:45]} {[%emt 00:02:14]} 16. Rab1 {[%clk 00:45:19]}
{[%emt 00:06:11]} Kh8 {[%clk 01:06:41]} {[%emt 00:03:34]} 17. Rfd1 {[%clk
00:40:37]} {[%emt 00:05:12]} Neg8 {[%clk 00:57:26]} {[%emt 00:09:45]} 18. d5
{[%clk 00:31:43]} {[%emt 00:09:24]} cxd5 {[%clk 00:56:20]} {[%emt 00:01:36]} 19.
cxd5 {[%clk 00:30:23]} {[%emt 00:01:50]} Ng4 {[%clk 00:55:54]} {[%emt
00:00:56]} 20. Bxg4 {[%clk 00:26:56]} {[%emt 00:03:57]} fxg4 {[%clk 00:56:21]}
{[%emt 00:00:03]} 21. e4 {[%clk 00:14:48]} {[%emt 00:12:38]} b6 {[%clk
00:53:35]} {[%emt 00:03:16]} 22. Nd4 {[%clk 00:12:56]} {[%emt 00:02:23]} a6
{[%clk 00:51:23]} {[%emt 00:02:42]} 23. Rf1 {[%clk 00:08:04]} {[%emt 00:05:22]}
b5 {[%clk 00:49:58]} {[%emt 00:01:54]} 24. Kg2 {[%clk 00:05:53]} {[%emt
00:02:41]} Qg5 {[%clk 00:45:54]} {[%emt 00:04:34]} 25. Nce2 {[%clk 00:04:11]}
{[%emt 00:02:12]} Nf6 {[%clk 00:42:09]} {[%emt 00:04:14]} 26. Rf4 {[%clk
00:03:51]} {[%emt 00:00:51]} Nxd5 {[%clk 00:34:07]} {[%emt 00:08:32]} 27. exd5
{[%clk 00:03:20]} {[%emt 00:01:01]} Qxd5+ {[%clk 00:34:35]} {[%emt 00:00:02]}
28. Kf2 {[%clk 00:02:25]} {[%emt 00:01:24]} Bb7 {[%clk 00:32:43]} {[%emt
00:02:22]} 29. Rf1 {[%clk 00:01:25]} {[%emt 00:01:31]} Rad8 {[%clk 00:30:19]}
{[%emt 00:02:55]} 30. Bb2 {[%clk 00:01:39]} {[%emt 00:00:16]} Qxa2 {[%clk
00:23:51]} {[%emt 00:06:57]} 31. Ba1 {[%clk 00:01:45]} {[%emt 00:00:24]} Bf3
{[%clk 00:22:38]} {[%emt 00:01:43]} 32. Rxf3 {[%clk 00:00:57]} {[%emt
00:01:19]} gxf3 {[%clk 00:23:05]} {[%emt 00:00:03]} 33. Kxf3 {[%clk 00:01:04]}
{[%emt 00:00:23]} Rf8+ {[%clk 00:23:06]} {[%emt 00:00:29]} 34. Nf4 {[%clk
00:01:01]} {[%emt 00:00:34]} g5 {[%clk 00:22:37]} {[%emt 00:00:58]} 35. Qe4
{[%clk 00:00:56]} {[%emt 00:00:35]} gxf4 {[%clk 00:22:17]} {[%emt 00:00:50]} 36.
Ne6 {[%clk 00:01:10]} {[%emt 00:00:15]} fxg3+ {[%clk 00:20:10]} {[%emt
00:02:37]} 37. Kxg3 {[%clk 00:01:28]} {[%emt 00:00:13]} Qa3+ {[%clk 00:15:37]}
{[%emt 00:05:03]} 38. Kg4 {[%clk 00:00:49]} {[%emt 00:01:09]} Bxa1 {[%clk
00:15:08]} {[%emt 00:00:59]} 39. Rxf8+ {[%clk 00:00:51]} {[%emt 00:00:28]} Rxf8
{[%clk 00:15:34]} {[%emt 00:00:04]} 40. Nxf8 {[%clk 00:01:13]} {[%emt
00:00:08]} Qxf8 {[%clk 00:15:49]} {[%emt 00:00:15]} 0-1

[Event "TOP 12F 2021"]
[Site "RENNES, France"]
[Date "2021.08.28"]
[Round "4.16"]
[White "Thomas, Anysia"]
[Black "Girod, Sarah"]
[Result "1-0"]
[TimeControl "1H30 + 30 sec/coup"]
[WhiteElo "2170"]
[BlackElo "1504"]

1. d4 {[%clk 01:30:49]} {[%emt 00:00:10]} d5 {[%clk 01:30:51]} {[%emt
00:00:09]} 2. c4 {[%clk 01:31:10]} {[%emt 00:00:09]} e5 {[%clk 01:31:16]}
{[%emt 00:00:05]} 3. dxe5 {[%clk 01:31:30]} {[%emt 00:00:10]} d4 {[%clk
01:31:41]} {[%emt 00:00:06]} 4. Nf3 {[%clk 01:31:45]} {[%emt 00:00:15]} Nc6
{[%clk 01:32:03]} {[%emt 00:00:07]} 5. a3 {[%clk 01:31:50]} {[%emt 00:00:26]}
Nge7 {[%clk 01:29:45]} {[%emt 00:02:48]} 6. b4 {[%clk 01:30:11]} {[%emt
00:02:09]} Ng6 {[%clk 01:26:45]} {[%emt 00:03:30]} 7. Bb2 {[%clk 01:30:28]}
{[%emt 00:00:12]} Ngxe5 {[%clk 01:25:57]} {[%emt 00:01:18]} 8. Nxe5 {[%clk
01:30:27]} {[%emt 00:00:32]} Nxe5 {[%clk 01:26:20]} {[%emt 00:00:06]} 9. e3
{[%clk 01:30:27]} {[%emt 00:00:31]} Be6 {[%clk 01:25:50]} {[%emt 00:01:00]} 10.
Bxd4 {[%clk 01:30:15]} {[%emt 00:00:41]} Nxc4 {[%clk 01:24:55]} {[%emt
00:01:26]} 11. Qc2 {[%clk 01:30:32]} {[%emt 00:00:13]} Nd6 {[%clk 01:24:23]}
{[%emt 00:01:02]} 12. Bd3 {[%clk 01:30:42]} {[%emt 00:00:21]} Qg5 {[%clk
01:08:32]} {[%emt 00:16:21]} 13. f4 {[%clk 01:30:06]} {[%emt 00:01:05]} Qh5
{[%clk 01:02:18]} {[%emt 00:06:44]} 14. O-O {[%clk 01:26:39]} {[%emt 00:03:58]}
Nf5 {[%clk 00:55:19]} {[%emt 00:07:29]} 15. Bb5+ {[%clk 01:20:39]} {[%emt
00:06:29]} Bd7 {[%clk 00:52:27]} {[%emt 00:03:22]} 16. Bxd7+ {[%clk 01:08:13]}
{[%emt 00:12:55]} Kxd7 {[%clk 00:51:33]} {[%emt 00:01:25]} 17. Bc5 {[%clk
01:08:22]} {[%emt 00:00:21]} Bd6 {[%clk 00:48:16]} {[%emt 00:03:48]} 18. Nd2
{[%clk 01:03:36]} {[%emt 00:05:15]} Rhd8 {[%clk 00:47:51]} {[%emt 00:00:55]} 19.
e4 {[%clk 00:55:44]} {[%emt 00:08:23]} Ne7 {[%clk 00:47:45]} {[%emt 00:00:36]}
20. Be3 {[%clk 00:50:43]} {[%emt 00:05:30]} c6 {[%clk 00:34:16]} {[%emt
00:13:59]} 21. Qc3 {[%clk 00:47:12]} {[%emt 00:04:00]} f6 {[%clk 00:30:22]}
{[%emt 00:04:25]} 22. Nc4 {[%clk 00:42:46]} {[%emt 00:04:55]} Bc7 {[%clk
00:29:18]} {[%emt 00:01:34]} 23. Bc5 {[%clk 00:40:52]} {[%emt 00:02:25]} b6
{[%clk 00:22:43]} {[%emt 00:07:06]} 24. Bxe7 {[%clk 00:31:46]} {[%emt
00:09:35]} Kxe7 {[%clk 00:23:02]} {[%emt 00:00:11]} 25. Ne3 {[%clk 00:32:09]}
{[%emt 00:00:07]} Rd7 {[%clk 00:15:48]} {[%emt 00:07:44]} 26. Qxc6 {[%clk
00:30:37]} {[%emt 00:02:02]} Rad8 {[%clk 00:16:12]} {[%emt 00:00:06]} 27. Nd5+
{[%clk 00:29:27]} {[%emt 00:01:40]} Kf8 {[%clk 00:12:26]} {[%emt 00:04:16]} 28.
Nxc7 {[%clk 00:28:00]} {[%emt 00:01:56]} Kg8 {[%clk 00:12:09]} {[%emt
00:00:48]} 29. Nd5 {[%clk 00:25:40]} {[%emt 00:02:50]} f5 {[%clk 00:11:39]}
{[%emt 00:01:01]} 30. Rad1 {[%clk 00:23:38]} {[%emt 00:02:31]} Kh8 {[%clk
00:12:03]} {[%emt 00:00:06]} 31. e5 {[%clk 00:20:51]} {[%emt 00:03:17]} 1-0